Cogmind - Beta 17 @@@ ROGUE MODE // 2026.08.14 @ 15:29:14 Player: CloudSeaKing Result: Destroyed by Q6-U9T(R) with Subdweller Machine Gun Performance ------------- Evolutions (0) 0 Regions Visited (2) 400 Robots Destroyed (11) 55 Value Destroyed (148) 148 Prototype IDs (0) 0 Alien Tech Used (0) 0 Bonus (-179) -179 TOTAL SCORE: 424 Bonus ------- Friendly Fire -179 Cogmind --------- Core Integrity 0/250 Matter 262/300 Energy 250/250 System Corruption 0% Temperature Cool (0) Movement Rolling (175) Ox5 Location -10/Subcaves Parts ------- > --- POWER (1) -------- Ion Engine > --- PROPULSION (2) --- Light Treads Compact Wheel > --- UTILITY (2) ------ Huge Storage Unit Seismic Detector > --- WEAPON (2) ------- Assault Rifle Barrage Gun > --- INVENTORY (25) --- Subdweller Power Source Subdweller Power Source Subdweller Power Source Subdweller Power Source Light Treads Spiked Treads Aluminum Leg Aluminum Leg Wheel Small Matter Pod (50) Sensor Array Signal Interpreter Seismic Detector Targeting Computer Targeting Computer Weapon Shielding Medium Laser Salvaging Laser Light Assault Rifle Light Assault Rifle Subdweller Machine Gun Subdweller Shrapnel Launcher Ripper Scrap Shield Fragment (49) Peak State ------------ > --- POWER ------------ Ion Engine > --- PROPULSION ------- Light Treads Compact Wheel > --- UTILITY ---------- Huge Storage Unit Seismic Detector > --- WEAPON ----------- Assault Rifle Barrage Gun > --- INVENTORY -------- Subdweller Power Source Subdweller Power Source Subdweller Power Source Subdweller Power Source Light Treads Spiked Treads Aluminum Leg Aluminum Leg Wheel Small Matter Pod Sensor Array Signal Interpreter Seismic Detector Targeting Computer Targeting Computer Weapon Shielding Medium Laser Salvaging Laser Light Assault Rifle Light Assault Rifle Subdweller Machine Gun Subdweller Shrapnel Launcher Ripper Scrap Shield Fragment [Rating: 12] Favorites ----------- Power Light Ion Engine Engine Light Ion Engine Propulsion Light Treads Treads Light Treads Wheel Compact Wheel Utility Seismic Detector Device Seismic Detector Storage Huge Storage Unit Weapon Small Laser Energy Gun Small Laser Ballistic Gun Assault Rifle Launcher Subdweller Shrapnel Launcher Build | -11 -10 -10 ------- Run | Yrd Mat Sub Slots Evolved . | . . . Power . | . . . Propulsion . | . . . Utility . | . . . Weapon . | . . . Parts Attached 15 | 7 2 6 Power 2 | 1 . 1 Engine 2 | 1 . 1 Core . | . . . Reactor . | . . . Propulsion 3 | 2 1 . Treads 2 | 2 . . Leg . | . . . Wheel 1 | . 1 . Hover . | . . . Flight . | . . . Utility 3 | 2 1 . Device 1 | 1 . . Storage 2 | 1 1 . Processor . | . . . Hackware . | . . . Protection . | . . . Artifact . | . . . Weapon 7 | 2 . 5 Energy Gun 2 | 2 . . Energy Cannon . | . . . Ballistic Gun 4 | . . 4 Ballistic Cannon . | . . . Launcher 1 | . . 1 Special Weapon . | . . . Impact Weapon . | . . . Slashing Weapon . | . . . Piercing Weapon . | . . . Special Melee Weapon . | . . . Unidentified Prototypes . | . . . Parts Lost 2 | . . 2 Power 1 | . . 1 Propulsion . | . . . Utility . | . . . Weapon 1 | . . 1 Highest Loss Streak 2 | . . 2 To Critical Strikes . | . . . Average Backups 15 | 4 14 22 Power 1 | . 1 3 Propulsion 4 | 2 4 4 Utility 5 | . 5 7 Weapon 3 | . 3 7 Tool/Special . | . . . Unused Backups 23 | . . 23 Power 6 | . . 6 Propulsion 4 | . . 4 Utility 7 | . . 7 Weapon 6 | . . 6 Tool/Special . | . . . Average Slot Usage (%) 100 | . 100 100 Engine 14 | . 14 14 Treads 14 | . 14 14 Wheel 13 | . 13 14 Device 14 | . 14 14 Storage 14 | . 14 14 Energy Gun 19 | . 28 . Ballistic Gun 8 | . . 27 Peak Build Rating 12 | 7 9 12 Average Rating 8 | 5 8 9 On Entrance 5 | . 7 9 Avg Prop Armor Cover (%) 13 | . 14 12 Naked Turns . | . . . Heaviest Build 91 | 12 87 91 Greatest Support 40 | 40 40 16 Greatest Overweight (x) 5 | . 5 5 Average Overweight (x) 4 | . 4 5 Largest Inventory Capacity 25 | 8 25 25 Average Capacity 22 | 7 24 25 Most Carried 25 | 7 20 25 Average Carried 15 | 4 14 22 Final Capacity 25 | 8 25 25 Final Carried 24 | 7 20 24 Class Distribution -------------------- 100% | Mutant Dominant Class ---------------- Mutant | -10/Materials Mutant | -10/Subcaves Resources | -11 -10 -10 ----------- Run | Yrd Mat Sub Matter Collected 476 | 260 68 148 Remotely . | . . . Salvage Created 211 | 36 116 59 Parts 22 | 6 11 5 Haulers Intercepted . | . . . Recyclers Shooed 1 | 1 . . Parts Field Recycled . | . . . Retrieved Matter . | . . . Parts Self-Destructed 13 | . . 13 Prevented . | . . . Parts Restored . | . . . Kills | -11 -10 -10 ------- Run | Yrd Mat Sub Combat Hostiles Destroyed 8 | . 7 1 Guns 8 | . 7 1 Classes Destroyed 5 | 1 2 2 Tunneler 2 | 2 . . Swarmer 6 | . 6 . Grunt 1 | . 1 . Subdweller 1 | . . 1 Federalist 1 | . . 1 Best Kill Streak 4 | 1 4 1 Combat Bots Only 4 | . 4 1 Max Kills in Single Turn 1 | 1 1 1 Gunslinging . | . . . Exploded . | . . . Melee . | . . . Uniques/NPCs Destroyed . | . . . Combat | -11 -10 -10 -------- Run | Yrd Mat Sub Hostile Shots Fired 47 | . 16 31 Missed 13 | . 6 7 Hits 34 | . 10 24 Projectile 34 | . 10 24 Damage Taken 649 | . 105 544 Core 267 | . 38 229 Absorbed by Shields . | . . . Core Remaining (%) 100 | 100 . . Volleys Fired 46 | 3 22 21 Largest 2 | 2 2 2 Hottest 90 | 90 90 48 Shots Fired 91 | 6 44 41 Gun 90 | 6 44 40 Cannon . | . . . Launcher 1 | . . 1 Special . | . . . Kinetic 41 | . . 41 Thermal 50 | 6 44 . Explosive . | . . . Electromagnetic . | . . . Robot Hit Streak 11 | 2 10 11 Robot Miss Streak 3 | 1 3 1 Penetration Max . | . . . Secondary Targets . | . . . Shots Hit Robots 68 | 4 29 35 Core Hits 19 | 3 11 5 Critical Kills . | . . . Critical Parts Destroyed . | . . . Critical Strikes 4 | . 3 1 Burn 3 | . 3 . Destroy 1 | . . 1 Melee Attacks . | . . . Impact . | . . . Slashing . | . . . Piercing . | . . . Sneak Attacks . | . . . Combat Hostiles . | . . . Follow-up Attacks . | . . . Damage Inflicted 772 | 48 380 344 Guns 593 | 48 350 195 Cannons . | . . . Explosions 149 | . . 149 Melee . | . . . Ramming 30 | . 30 . Kinetic 344 | . . 344 Thermal 398 | 48 350 . Explosive . | . . . Electromagnetic . | . . . Impact . | . . . Slashing . | . . . Piercing . | . . . Highest Corruption . | . . . Average Corruption . | . . . Corruption Purged . | . . . Corruption Blocked . | . . . Overload Shots . | . . . Overflow Damage . | . . . Projectiles . | . . . Explosions . | . . . Melee . | . . . Knockbacks 2 | . 2 . Impact 2 | . 2 . Kinetic . | . . . Secondary . | . . . Self-Inflicted Damage 66 | . 14 52 Shots 1 | . . 1 Rammed 4 | . 4 . Targets Rammed 4 | . 4 . Kicked . | . . . Crushed . | . . . Highest Temperature 150 | 60 150 . Average Temperature 51 | 26 55 . Received Heat Transfer 132 | . 12 120 Siege Activations . | . . . Martial Activations . | . . . Shielding Activations . | . . . Robots Disrupted . | . . . Combat Hostiles . | . . . Robots Corrupted . | . . . Combat Hostiles . | . . . Parts Fried . | . . . Impact Corruptions . | . . . Robots Melted . | . . . Combat Hostiles . | . . . Parts Melted 2 | 1 1 . Heat Transferred 1275 | 124 1151 . Parts Sabotaged . | . . . Parts Stolen . | . . . Parts Stripped . | . . . Power Chain Reactions . | . . . Alert | -11 -10 -10 ------- Run | Yrd Mat Sub Maximum Alert Level . | . . . Low Security (%) 100 | 100 100 . Level 1 . | . . . Level 2 . | . . . Level 3 . | . . . Level 4 . | . . . Level 5 . | . . . High Security . | . . . Max Security . | . . . Peak Influence 110 | 5 110 . Initial . | . . . Average 21 | . 26 . Influence Increases 180 | 10 170 . Destroy 0b10 Robot/C 140 | . 140 . Destroy 0b10 Robot/NC 10 | 10 . . Destroy Leader 30 | . 30 . Influence Decreases 180 | 10 170 . Time Decay 180 | 10 170 . Squads Dispatched 1 | . 1 . Investigation . | . . . Extermination . | . . . Reinforcement 1 | . 1 . Assault . | . . . Garrison . | . . . Intercept . | . . . Searches Triggered . | . . . Construction Impeded . | . . . Haulers Reinforced . | . . . Active Scanning Responses . | . . . Cargo Convoy Interrupts . | . . . Stealth | -11 -10 -10 --------- Run | Yrd Mat Sub Distress Signals 2 | . 2 . Communications Jammed . | . . . Distress Signals . | . . . Times Spotted 15 | . 12 3 Peak Tracking Total 4 | . 4 2 Tactical Retreats . | . . . Traps | -11 -10 -10 ------- Run | Yrd Mat Sub Traps Triggered . | . . . Indirectly . | . . . Trap Hack Attempts . | . . . Triggered . | . . . Disarmed . | . . . Reprogrammed . | . . . Reused . | . . . Traps Extracted . | . . . Installed . | . . . Triggered . | . . . Machines | -11 -10 -10 ---------- Run | Yrd Mat Sub Machines Disabled . | . . . Max in Single Turn . | . . . Machines Repaired . | . . . Machines Dismantled . | . . . Machines Sabotaged . | . . . Overloaded Fab Kills . | . . . Hacking | -11 -10 -10 --------- Run | Yrd Mat Sub Machines Accessed 5 | . 5 . Terminals 3 | . 3 . Fabricators . | . . . Repair Stations . | . . . Recycling Units 2 | . 2 . Scanalyzers . | . . . Garrison Access . | . . . Total Hacks 6 | . 6 . Successful 1 | . 1 . Failed 5 | . 5 . Catastrophic 2 | . 2 . Database Lockouts . | . . . Manual 4 | . 4 . Terminals 3 | . 3 . Fabricators . | . . . Repair Stations . | . . . Recycling Units 3 | . 3 . Scanalyzers . | . . . Garrison Access . | . . . Terminal Hacks . | . . . Fabricator Hacks . | . . . Repair Station Hacks . | . . . Recycling Unit Hacks 1 | . 1 . Retrieve Components 1 | . 1 . Scanalyzer . | . . . Garrison Access Hacks . | . . . Unauthorized Hacks . | . . . Terminals . | . . . Fabricators . | . . . Repair Stations . | . . . Recycling Units . | . . . Scanalyzers . | . . . Garrison Access . | . . . Data Cores Recovered . | . . . Used . | . . . Hacking Detections 5 | . 5 . Full Trace Events . | . . . Feedback Events . | . . . Feedback Blocked . | . . . Robot Schematics Acquired . | . . . Robots Built . | . . . Authchips . | . . . Time . | . . . Total Robot Build Rating . | . . . Part Schematics Acquired . | . . . Parts Built . | . . . Authchips . | . . . Time . | . . . Total Part Build Rating . | . . . Part Studies Acquired . | . . . Parts Repaired . | . . . Time . | . . . Parts Recycled . | . . . Recycled Matter . | . . . Retrieved Matter . | . . . Retrieved Components 3 | . 3 . Parts Scanalyzed . | . . . Part Schematics Acquired . | . . . Parts Damaged . | . . . Bothacking | -11 -10 -10 ------------ Run | Yrd Mat Sub Used RIF Installer . | . . . Robots Hacked . | . . . Non-combat . | . . . Combat . | . . . Robot Hacks Applied . | . . . Relay Couplers Released . | . . . Fabnet Peak Effective % . | . . . Robots Rewired . | . . . Allies Hacked . | . . . Hacks Repelled . | . . . Allies | -11 -10 -10 -------- Run | Yrd Mat Sub Total Allies . | . . . Largest Group . | . . . Highest-Rated Group . | . . . Highest-Rated Ally . | . . . Total Orders . | . . . Ally Attacks . | . . . Total Damage . | . . . Kills . | . . . Allies Corrupted . | . . . Allies Melted . | . . . Intel | -11 -10 -10 ------- Run | Yrd Mat Sub Active Infowar (turns) 1110 | 59 737 314 Seismic 1110 | 59 737 314 Robot Analysis Total . | . . . Derelict Logs Recovered . | . . . Drone Launches . | . . . Drone Recoveries . | . . . Exploration | -11 -10 -10 ------------- Run | Yrd Mat Sub Turns Passed 1215 | 164 737 314 Spaces Moved 596 | 92 372 132 Core 8 | 8 . . Treads 90 | 84 6 . Legs . | . . . Wheels 498 | . 366 132 Hover . | . . . Flight . | . . . Fastest Speed 50 | 50 160 175 Average Speed 171 | 150 174 175 Slowest Speed 175 | 160 175 175 Overloaded Moves . | . . . Propulsion Burnouts . | . . . Robots Hopped . | . . . Potential Cave-ins . | . . . Cave-ins Triggered . | . . . Exploration Rate (%) 23 | 4 57 10 Regions Visited 2 Branch Regions 1 Pre-discovered Areas . | . . . Known Exits Taken . | . . . Unknown Exits Taken 2 | 1 1 . Scrap Searched 5 | . . 5 Spaces Dug . | . . . Terrain Destroyed 15 | . . 15 Melee . | . . . Projectile . | . . . AOE 15 | . . 15 Terrain Rammed . | . . . Walls Destroyed . | . . . Machines Disabled . | . . . Actions | -11 -10 -10 --------- Run | Yrd Mat Sub Total 696 | 108 411 177 Wait . | . . . Move 594 | 91 371 132 Hop . | . . . Pick Up 31 | 7 12 12 Fast Attach 7 | 7 . . Attach 2 | . . 2 Detach . | . . . Swap 6 | . 2 4 Drop 6 | . . 6 Fire 46 | 3 22 21 Melee . | . . . Ram 4 | . 4 . Kick . | . . . Crush . | . . . Escape Stasis . | . . . Rewire . | . . . Trap . | . . . Miscellaneous . | . . . Route ------- -11/Scrapyard -10/Materials (discovered 3 exits: [*Mat] / [*Min] / [*Sub]) -10/Subcaves (discovered 1 exit: [Scr]) History --------- Turn | Location | Event 3 | -11/Scrapyard | Discovered new exit (range 16) 165 | -11/Scrapyard | Entered Materials 166 | -10/Materials | Met a group of wandering Federalists 312 | -10/Materials | Build established: Mutant 494 | -10/Materials | Discovered new exit (range 5) 699 | -10/Materials | Discovered new exit (range 15) 884 | -10/Materials | Discovered new exit (range 11) 902 | -10/Materials | Entered Subcaves 903 | -10/Subcaves | Continued accompanying wandering Federalists (6) 903 | -10/Subcaves | Approached by a straggling Scientist 1045 | -10/Subcaves | Core integrity fell below 50% 1059 | -10/Subcaves | Core integrity fell below 20% 1216 | -10/Subcaves | Destroyed by Q6-U9T(R) with Subdweller Machine Gun Last Messages --------------- here" 01106_ Acquired Sub. Power Source. 01108_ Subatomizers dissect the Lgt. Humpback. 01110_ Searching scrap... 01110_ Found Sub. Machine Gun. 01110_ Found Ripper. 01110_ Found 43 Matter. 01114_ Dropped Sml. Storage Unit. 01114_ Acquired Ripper. 01117_ Dropped Med. Laser. 01117_ Acquired Sub. Machine Gun. 01121_ Subatomizers dissect the Lgt. Humpback. 01138_ RZ-KQM(g): "I swear these Subs are restructuring the caves every time we're not looking." PQ-OYP(c): "I think it's somewhere west of here" 01204_ PQ-OYP(c) suffers critical hit (Destroy). 01204_ PQ-OYP(c) destroyed. 01206_ B7-UY4(R) suffers critical hit (Destroy). 01214_ B7-UY4(R) destroyed. Map ----- +----------------------------------------------------+ | ?????????????????????????????????????????????????? | | ?????????????????????????????????????????????????? | | ?????????????????????????????????????????????????? | | ?????????????????????????????????????????????????? | | ?????????????????????????????????????????????????? | | ?????????????????????????????????????????????????? | | ?????????????????????????????????????????????????? | | ?????????????????????????????????????????????????? | | ?????????????????????????????????????????????????? | | ?????????????????????????????????????????????????? | | ?????????????????????????????????????????????????? | | ?????????????????????????????????????????????????? | | ???????????????????????????????"#????????????????? | | ??????????????????????????????? ##???????????????? | | ?????????????????????????????? #??""???????????? | | ?????????????????????????????? "?#""""??????????? | | ?????????????????????????????? ##" ???????????? | | ??????????????????????????????* ????????????? | | ??????????????????????????####%R #?????????????? | | ?????????????????????????## [! #?????????????? | | ?????????????????????????# ##????????????? | | ?????????????????????????# ##???????????? | | ????????????????????????## #???????????? | | ????????????????????????# #?? ##???????? | | ????????????????????????# *#?????? ##??????? | | ????????????????????????#@ !%#??### #??????? | | ????????????????????????## # !#?# #??????? | | ?????????????????????????### ## #???????? | | ???????????????????????????# #???????? | | ???????????????????????????## #???????? | | ??????????????????????????### ### #??????? | | ?????????????????????????## #??? % ??????? | | ?????????????????????????# % ##???? ??????? | | ?????????????????????????# ##?????? ???????? | | ?????????????????????#####% ##???????? ??????????? | | ???????????????????### ## ##????????????????????? | | ??????????????????## #?????????????????????? | | ??????????????????# #?????????????????????? | | ??????????????????# ##????????????????????? | | ??????????????????# #????????????????????? | | ?????????????????## ##????????????????????? | | ?????????????????# # ##?????????????????????? | | ?????????????????# ### %##?????????????????????? | | ?????????????????# ## ####??????????????????? | | ?????????????????# ### #??????????????????? | | ?????????????????# #?# # # ##??????????????????? | | ????????????????## #?##### #???????????????????? | | ????????????????# ##??????? ???????????????????? | | ????????????????## #???????? ??????????????????? | | ????????????????# ##???????? ?????????????????? | +----------------------------------------------------+ Best States ------------- Heat Dissipation 25 Energy Generation 10 Energy Capacity 250 Matter Stores 300 Matter Capacity 300 Sight Range 16 Terrain Scan Density 10 Evasion (%) 40 Recoil Reduction 2 Item Schematics ----------------- None Robot Schematics ------------------ None Fabricated ------------ Nothing Repaired ---------- Nothing Studied --------- None Alien Tech Used ----------------- None Achievements -------------- None Challenges ------------ None Game ------ Seed MinesnifferDeliveryLeg Manual? 0 Play Time 00:09:01 Cumulative 65.4 hours Start 2026.08.14 @ 15:22:35 End 2026.08.14 @ 15:29:14 Sessions 1 Manual Loads 0 Difficulty Rogue Special Mode None Game No. 65 Rogue 65 Adventurer 0 Explorer 0 Win Type - Total 3 Types 3/0/0/0/0/0/0/0/0/0 Lore% 39 Gallery% 43 Achievement% 39 Wizard Run 0 Options --------- Layout 1 ASCII 0 Keyboard 0 Movement Arrows Keybinds 0 Fullscreen 2 Font 32/SmallcapsGlow Map View 50x35 Zoom Use 0% Tactical HUD 1 Map Filters NONE Filters NONE Steam 1 RUN: b415f7a3-a77f-4bb0-9688-9902cbe35ec7